[Event "Titled Tuesday Blitz February 21 Early 2023"]
[White "Chakravarthi Reddy, M"]
[Black "Wadsworth, Matthew J"]
[WhiteFideId "25009532"]
[BlackFideId "415804"]
[WhiteElo "2279"]
[BlackElo "2428"]
[Result "0-1"]
[Round "06"]
[TimeControl "180+2"]
[Date "2023.02.21"]
[WhiteClock "0:00:01"]
[BlackClock "0:00:03"]

1. e4 {[%clk 0:03:00]}  e6 {[%clk 0:02:59]} 2. d4 {[%clk 0:02:59]}  d5 {[%clk 0:02:59]} 3. e5 {[%clk 0:02:57]}  c5 {[%clk 0:02:59]} 4. c3 {[%clk 0:02:58]}  Nc6 {[%clk 0:02:59]} 5. Nf3 {[%clk 0:02:59]}  Qb6 {[%clk 0:02:59]} 6. Be2 {[%clk 0:02:58]}  cxd4 {[%clk 0:02:54]} 7. O-O {[%clk 0:02:58]}  dxc3 {[%clk 0:02:43]} 8. Nxc3 {[%clk 0:02:49]}  Bd7 {[%clk 0:02:42]} 9. h4 {[%clk 0:02:46]}  a6 {[%clk 0:02:41]} 10. Re1 {[%clk 0:02:46]}  Nge7 {[%clk 0:02:39]} 11. Bd3 {[%clk 0:02:45]}  Ng6 {[%clk 0:02:10]} 12. h5 {[%clk 0:02:43]}  Bc5 {[%clk 0:02:10]} 13. hxg6 {[%clk 0:02:32]}  Bxf2+ {[%clk 0:02:09]} 14. Kf1 {[%clk 0:02:33]}  hxg6 {[%clk 0:02:09]} 15. Ke2 {[%clk 0:01:20]}  Bxe1 {[%clk 0:02:02]} 16. Qxe1 {[%clk 0:01:21]}  Nd4+ {[%clk 0:02:01]} 17. Nxd4 {[%clk 0:01:16]}  Qxd4 {[%clk 0:02:02]} 18. Qg3 {[%clk 0:01:13]}  Qh4 {[%clk 0:01:51]} 19. Bf4 {[%clk 0:01:09]}  Qxg3 {[%clk 0:01:49]} 20. Bxg3 {[%clk 0:01:10]}  b5 {[%clk 0:01:47]} 21. a3 {[%clk 0:01:00]}  Ke7 {[%clk 0:01:37]} 22. Rf1 {[%clk 0:00:54]}  g5 {[%clk 0:01:34]} 23. Ke3 {[%clk 0:00:47]}  Rac8 {[%clk 0:01:32]} 24. Ne2 {[%clk 0:00:47]}  f5 {[%clk 0:01:19]} 25. exf6+ {[%clk 0:00:29]}  gxf6 {[%clk 0:01:19]} 26. Nd4 {[%clk 0:00:29]}  f5 {[%clk 0:00:40]} 27. Be5 {[%clk 0:00:29]}  Rh4 {[%clk 0:00:33]} 28. Nf3 {[%clk 0:00:23]}  Rg4 {[%clk 0:00:29]} 29. Rh1 {[%clk 0:00:23]}  Rxg2 {[%clk 0:00:20]} 30. Rh7+ {[%clk 0:00:23]}  Kd8 {[%clk 0:00:19]} 31. Nd4 {[%clk 0:00:15]}  Rc1 {[%clk 0:00:14]} 32. Rh8+ {[%clk 0:00:15]}  Ke7 {[%clk 0:00:14]} 33. Rh7+ {[%clk 0:00:14]}  Ke8 {[%clk 0:00:14]} 34. Rh8+ {[%clk 0:00:14]}  Kf7 {[%clk 0:00:13]} 35. Rh7+ {[%clk 0:00:14]}  Kg6 {[%clk 0:00:13]} 36. Rxd7 {[%clk 0:00:14]}  Re1+ {[%clk 0:00:08]} 37. Ne2 {[%clk 0:00:14]}  d4+ {[%clk 0:00:05]} 38. Kd2 {[%clk 0:00:14]}  Rexe2+ {[%clk 0:00:04]} 39. Bxe2 {[%clk 0:00:14]}  f4 {[%clk 0:00:04]} 40. Bxd4 {[%clk 0:00:13]}  f3 {[%clk 0:00:04]} 41. Rg7+ {[%clk 0:00:13]}  Kh6 {[%clk 0:00:03]} 42. Rf7 {[%clk 0:00:07]}  Rxe2+ {[%clk 0:00:03]} 43. Kd1 {[%clk 0:00:06]}  g4 {[%clk 0:00:03]} 44. Rg7 {[%clk 0:00:03]}  e5 {[%clk 0:00:03]} 45. Bc3 {[%clk 0:00:01]}  Kxg7 {[%clk 0:00:03]} 0-1


[Site "https://www.chess.com"]

[Event "Titled Tuesday Blitz February 21 Early 2023"]
[White "Real_taiatai"]
[Black "Jeet, Jain"]
[BlackFideId "5073022"]
[WhiteElo "2442"]
[BlackElo "2199"]
[Result "0-1"]
[Round "06"]
[TimeControl "180+2"]
[Date "2023.02.21"]
[WhiteClock "0:01:20"]
[BlackClock "0:01:37"]

1. d4 {[%clk 0:03:00]}  c6 {[%clk 0:02:56]} 2. c4 {[%clk 0:02:58]}  d5 {[%clk 0:02:55]} 3. Nf3 {[%clk 0:02:59]}  Nf6 {[%clk 0:02:54]} 4. Nc3 {[%clk 0:02:55]}  a6 {[%clk 0:02:54]} 5. cxd5 {[%clk 0:02:55]}  cxd5 {[%clk 0:02:54]} 6. Bf4 {[%clk 0:02:56]}  Nc6 {[%clk 0:02:54]} 7. e3 {[%clk 0:02:56]}  e6 {[%clk 0:02:51]} 8. Bd3 {[%clk 0:02:55]}  Bd6 {[%clk 0:02:51]} 9. Ne5 {[%clk 0:02:50]}  O-O {[%clk 0:02:50]} 10. O-O {[%clk 0:02:48]}  Bxe5 {[%clk 0:02:47]} 11. dxe5 {[%clk 0:02:45]}  Nd7 {[%clk 0:02:46]} 12. Qg4 {[%clk 0:02:37]}  Ndxe5 {[%clk 0:02:22]} 13. Bxe5 {[%clk 0:02:37]}  Nxe5 {[%clk 0:02:23]} 14. Bxh7+ {[%clk 0:02:37]}  Kxh7 {[%clk 0:02:23]} 15. Qh5+ {[%clk 0:02:37]}  Kg8 {[%clk 0:02:24]} 16. Qxe5 {[%clk 0:02:38]}  Qf6 {[%clk 0:02:17]} 17. Qxf6 {[%clk 0:02:36]}  gxf6 {[%clk 0:02:17]} 18. Rac1 {[%clk 0:02:36]}  Bd7 {[%clk 0:02:16]} 19. Rfd1 {[%clk 0:02:32]}  Bc6 {[%clk 0:02:15]} 20. Ne2 {[%clk 0:02:31]}  e5 {[%clk 0:02:12]} 21. Nc3 {[%clk 0:02:21]}  Rfd8 {[%clk 0:02:11]} 22. Rd2 {[%clk 0:02:20]}  Rd7 {[%clk 0:02:11]} 23. Rcd1 {[%clk 0:02:07]}  Rad8 {[%clk 0:02:10]} 24. Ne2 {[%clk 0:02:07]}  Kf8 {[%clk 0:02:08]} 25. Nf4 {[%clk 0:02:05]}  exf4 {[%clk 0:02:07]} 26. exf4 {[%clk 0:02:05]}  f5 {[%clk 0:01:50]} 27. b3 {[%clk 0:02:03]}  d4 {[%clk 0:01:50]} 28. f3 {[%clk 0:01:59]}  a5 {[%clk 0:01:50]} 29. Kf2 {[%clk 0:01:58]}  a4 {[%clk 0:01:50]} 30. g4 {[%clk 0:01:55]}  axb3 {[%clk 0:01:49]} 31. axb3 {[%clk 0:01:54]}  d3 {[%clk 0:01:48]} 32. h4 {[%clk 0:01:50]}  Bb5 {[%clk 0:01:47]} 33. h5 {[%clk 0:01:48]}  Re8 {[%clk 0:01:46]} 34. Rc1 {[%clk 0:01:41]}  Re2+ {[%clk 0:01:39]} 35. Rxe2 {[%clk 0:01:41]}  dxe2 {[%clk 0:01:40]} 36. h6 {[%clk 0:01:41]}  Kg8 {[%clk 0:01:38]} 37. Rc5 {[%clk 0:01:22]}  Rd1 {[%clk 0:01:36]} 38. Re5 {[%clk 0:01:22]}  Rf1+ {[%clk 0:01:36]} 39. Kg3 {[%clk 0:01:20]}  e1=Q+ {[%clk 0:01:37]} 0-1


[Site "https://www.chess.com"]

[Event "Titled Tuesday Blitz February 21 Early 2023"]
[White "Kouskoutis, Georgios-Alexandros"]
[Black "Malyi, Viacheslav"]
[WhiteFideId "4234049"]
[BlackFideId "14123983"]
[WhiteElo "2295"]
[BlackElo "2391"]
[Result "1-0"]
[Round "06"]
[TimeControl "180+2"]
[Date "2023.02.21"]
[WhiteClock "0:00:09"]
[BlackClock "0:00:42"]

1. c4 {[%clk 0:03:00]}  c5 {[%clk 0:02:58]} 2. g3 {[%clk 0:03:00]}  Nf6 {[%clk 0:02:58]} 3. Bg2 {[%clk 0:03:00]}  g6 {[%clk 0:02:58]} 4. Nc3 {[%clk 0:02:59]}  Bg7 {[%clk 0:02:58]} 5. e4 {[%clk 0:02:58]}  Nc6 {[%clk 0:02:57]} 6. Nge2 {[%clk 0:02:58]}  O-O {[%clk 0:02:57]} 7. O-O {[%clk 0:02:58]}  Ne8 {[%clk 0:02:58]} 8. Rb1 {[%clk 0:02:53]}  Nc7 {[%clk 0:02:58]} 9. a3 {[%clk 0:02:53]}  a5 {[%clk 0:02:58]} 10. d3 {[%clk 0:02:53]}  Ne6 {[%clk 0:02:58]} 11. Nb5 {[%clk 0:02:49]}  Ned4 {[%clk 0:02:58]} 12. Nbxd4 {[%clk 0:02:44]}  Nxd4 {[%clk 0:02:57]} 13. b4 {[%clk 0:02:44]}  axb4 {[%clk 0:02:56]} 14. axb4 {[%clk 0:02:45]}  b6 {[%clk 0:02:51]} 15. Be3 {[%clk 0:02:42]}  e5 {[%clk 0:02:48]} 16. Nxd4 {[%clk 0:02:42]}  cxd4 {[%clk 0:02:47]} 17. Bd2 {[%clk 0:02:42]}  d6 {[%clk 0:02:47]} 18. Ra1 {[%clk 0:02:39]}  Be6 {[%clk 0:02:46]} 19. f4 {[%clk 0:02:10]}  f6 {[%clk 0:02:33]} 20. f5 {[%clk 0:02:03]}  Bf7 {[%clk 0:02:32]} 21. h4 {[%clk 0:01:53]}  Re8 {[%clk 0:02:28]} 22. g4 {[%clk 0:01:47]}  Rxa1 {[%clk 0:02:25]} 23. Qxa1 {[%clk 0:01:45]}  Qa8 {[%clk 0:02:26]} 24. g5 {[%clk 0:01:41]}  Qb7 {[%clk 0:02:13]} 25. gxf6 {[%clk 0:01:35]}  Bf8 {[%clk 0:02:11]} 26. Qc1 {[%clk 0:01:23]}  b5 {[%clk 0:02:08]} 27. Bh6 {[%clk 0:01:17]}  Kh8 {[%clk 0:01:39]} 28. fxg6 {[%clk 0:01:04]}  Bxg6 {[%clk 0:01:31]} 29. Bxf8 {[%clk 0:01:00]}  Rxf8 {[%clk 0:01:31]} 30. Qh6 {[%clk 0:00:56]}  Qf7 {[%clk 0:01:24]} 31. cxb5 {[%clk 0:00:35]}  Rb8 {[%clk 0:01:21]} 32. Bh3 {[%clk 0:00:29]}  Rg8 {[%clk 0:01:16]} 33. Kh2 {[%clk 0:00:27]}  Qa2+ {[%clk 0:01:10]} 34. Kh1 {[%clk 0:00:27]}  Qf7 {[%clk 0:00:52]} 35. b6 {[%clk 0:00:25]}  Bh5 {[%clk 0:00:52]} 36. b7 {[%clk 0:00:17]}  Be2 {[%clk 0:00:52]} 37. Qg7+ {[%clk 0:00:09]}  Rxg7 {[%clk 0:00:44]} 38. fxg7+ {[%clk 0:00:09]}  Kxg7 {[%clk 0:00:41]} 39. Rxf7+ {[%clk 0:00:08]}  Kxf7 {[%clk 0:00:42]} 40. b8=Q {[%clk 0:00:09]} 1-0


[Site "https://www.chess.com"]

[Event "Titled Tuesday Blitz February 21 Early 2023"]
[White "Delorme, Alban"]
[Black "Migot, Tangi"]
[WhiteFideId "623636"]
[BlackFideId "662445"]
[WhiteElo "2298"]
[BlackElo "2373"]
[Result "1/2-1/2"]
[Round "06"]
[TimeControl "180+2"]
[Date "2023.02.21"]
[WhiteClock "0:00:06"]
[BlackClock "0:00:15"]

1. e4 {[%clk 0:03:00]}  c5 {[%clk 0:02:59]} 2. Nf3 {[%clk 0:03:00]}  b6 {[%clk 0:02:59]} 3. d4 {[%clk 0:02:58]}  cxd4 {[%clk 0:03:00]} 4. c3 {[%clk 0:02:54]}  Bb7 {[%clk 0:02:59]} 5. Bd3 {[%clk 0:02:53]}  Nf6 {[%clk 0:02:55]} 6. e5 {[%clk 0:02:50]}  Nd5 {[%clk 0:02:52]} 7. cxd4 {[%clk 0:02:47]}  e6 {[%clk 0:02:53]} 8. Nc3 {[%clk 0:02:44]}  Nxc3 {[%clk 0:02:51]} 9. bxc3 {[%clk 0:02:45]}  Qc7 {[%clk 0:02:51]} 10. O-O {[%clk 0:02:41]}  d6 {[%clk 0:02:49]} 11. Bf4 {[%clk 0:02:37]}  Nd7 {[%clk 0:02:47]} 12. Re1 {[%clk 0:02:29]}  dxe5 {[%clk 0:02:45]} 13. Nxe5 {[%clk 0:02:25]}  Nxe5 {[%clk 0:02:45]} 14. Bxe5 {[%clk 0:02:23]}  Bd6 {[%clk 0:02:40]} 15. Qh5 {[%clk 0:01:52]}  Bxe5 {[%clk 0:02:36]} 16. Rxe5 {[%clk 0:01:36]}  g6 {[%clk 0:02:08]} 17. Bb5+ {[%clk 0:01:31]}  Bc6 {[%clk 0:02:05]} 18. Qf3 {[%clk 0:01:29]}  Rc8 {[%clk 0:02:02]} 19. d5 {[%clk 0:01:00]}  Bxb5 {[%clk 0:01:52]} 20. dxe6 {[%clk 0:00:55]}  O-O {[%clk 0:01:43]} 21. Rxb5 {[%clk 0:00:53]}  Qxc3 {[%clk 0:01:40]} 22. exf7+ {[%clk 0:00:48]}  Rxf7 {[%clk 0:01:33]} 23. Qxc3 {[%clk 0:00:47]}  Rxc3 {[%clk 0:01:34]} 24. a4 {[%clk 0:00:45]}  Rc2 {[%clk 0:01:31]} 25. f3 {[%clk 0:00:42]}  Rfc7 {[%clk 0:01:16]} 26. a5 {[%clk 0:00:38]}  Rc1+ {[%clk 0:01:16]} 27. Rxc1 {[%clk 0:00:38]}  Rxc1+ {[%clk 0:01:17]} 28. Kf2 {[%clk 0:00:38]}  Rc6 {[%clk 0:01:00]} 29. axb6 {[%clk 0:00:37]}  axb6 {[%clk 0:00:58]} 30. Ke3 {[%clk 0:00:37]}  Kf7 {[%clk 0:00:59]} 31. Kd4 {[%clk 0:00:34]}  Ke6 {[%clk 0:00:57]} 32. h4 {[%clk 0:00:33]}  Rd6+ {[%clk 0:00:56]} 33. Ke4 {[%clk 0:00:32]}  Kd7 {[%clk 0:00:56]} 34. Ke5 {[%clk 0:00:29]}  Rc6 {[%clk 0:00:54]} 35. Kd5 {[%clk 0:00:25]}  Kc7 {[%clk 0:00:53]} 36. Rb1 {[%clk 0:00:23]}  Rd6+ {[%clk 0:00:49]} 37. Ke5 {[%clk 0:00:23]}  Rd2 {[%clk 0:00:46]} 38. g4 {[%clk 0:00:20]}  Rc2 {[%clk 0:00:41]} 39. f4 {[%clk 0:00:20]}  Rc6 {[%clk 0:00:36]} 40. f5 {[%clk 0:00:20]}  gxf5 {[%clk 0:00:34]} 41. gxf5 {[%clk 0:00:21]}  Kd7 {[%clk 0:00:34]} 42. f6 {[%clk 0:00:17]}  Rc5+ {[%clk 0:00:31]} 43. Kf4 {[%clk 0:00:17]}  b5 {[%clk 0:00:31]} 44. Re1 {[%clk 0:00:13]}  Kd6 {[%clk 0:00:25]} 45. Re7 {[%clk 0:00:13]}  h6 {[%clk 0:00:16]} 46. Rh7 {[%clk 0:00:12]}  Ke6 {[%clk 0:00:15]} 47. Rxh6 {[%clk 0:00:08]}  Kf7 {[%clk 0:00:15]} 48. h5 {[%clk 0:00:03]}  b4 {[%clk 0:00:14]} 49. Rh7+ {[%clk 0:00:03]}  Kxf6 {[%clk 0:00:15]} 50. Rb7 {[%clk 0:00:03]}  Rc4+ {[%clk 0:00:16]} 51. Ke3 {[%clk 0:00:03]}  Kg5 {[%clk 0:00:16]} 52. Rb5+ {[%clk 0:00:03]}  Kh6 {[%clk 0:00:16]} 53. Kd3 {[%clk 0:00:04]}  Rh4 {[%clk 0:00:16]} 54. Kc2 {[%clk 0:00:03]}  Rg4 {[%clk 0:00:15]} 55. Kb3 {[%clk 0:00:04]}  Rh4 {[%clk 0:00:15]} 56. Rb6+ {[%clk 0:00:03]}  Kxh5 {[%clk 0:00:15]} 57. Rb5+ {[%clk 0:00:04]}  Kg6 {[%clk 0:00:15]} 58. Rxb4 {[%clk 0:00:05]}  Rxb4+ {[%clk 0:00:15]} 59. Kxb4 {[%clk 0:00:06]} 1/2-1/2


[Site "https://www.chess.com"]

[Event "Titled Tuesday Blitz February 21 Early 2023"]
[White "Valle Maytin, Luis Enrique"]
[Black "Pakleza, Zbigniew"]
[WhiteFideId "3503666"]
[BlackFideId "1119290"]
[WhiteElo "2241"]
[BlackElo "2494"]
[Result "0-1"]
[Round "06"]
[TimeControl "180+2"]
[Date "2023.02.21"]
[WhiteClock "0:00:01"]
[BlackClock "0:00:24"]

1. e4 {[%clk 0:03:00]}  d6 {[%clk 0:03:00]} 2. d4 {[%clk 0:02:59]}  Nf6 {[%clk 0:03:00]} 3. Nc3 {[%clk 0:02:58]}  c6 {[%clk 0:03:01]} 4. Nf3 {[%clk 0:02:56]}  Bg4 {[%clk 0:03:00]} 5. h3 {[%clk 0:02:56]}  Bh5 {[%clk 0:03:00]} 6. Bd3 {[%clk 0:02:54]}  e6 {[%clk 0:03:00]} 7. g4 {[%clk 0:02:39]}  Bg6 {[%clk 0:03:00]} 8. g5 {[%clk 0:02:40]}  Nfd7 {[%clk 0:02:55]} 9. Nd2 {[%clk 0:02:32]}  Qxg5 {[%clk 0:02:40]} 10. Nf3 {[%clk 0:02:19]}  Qd8 {[%clk 0:02:37]} 11. Bg5 {[%clk 0:02:17]}  Be7 {[%clk 0:02:32]} 12. Qd2 {[%clk 0:02:12]}  Bh5 {[%clk 0:02:26]} 13. Bxe7 {[%clk 0:02:09]}  Qxe7 {[%clk 0:02:27]} 14. Nh2 {[%clk 0:02:07]}  d5 {[%clk 0:02:08]} 15. e5 {[%clk 0:01:53]}  a6 {[%clk 0:02:07]} 16. Rg1 {[%clk 0:01:45]}  Bg6 {[%clk 0:02:05]} 17. O-O-O {[%clk 0:01:27]}  c5 {[%clk 0:02:05]} 18. Be2 {[%clk 0:00:44]}  cxd4 {[%clk 0:01:59]} 19. Qxd4 {[%clk 0:00:43]}  Nc6 {[%clk 0:02:00]} 20. Qd2 {[%clk 0:00:38]}  Ndxe5 {[%clk 0:01:40]} 21. f4 {[%clk 0:00:37]}  Nd7 {[%clk 0:01:40]} 22. Bg4 {[%clk 0:00:20]}  O-O {[%clk 0:01:22]} 23. f5 {[%clk 0:00:11]}  exf5 {[%clk 0:01:22]} 24. Nxd5 {[%clk 0:00:11]}  Qc5 {[%clk 0:01:23]} 25. Bf3 {[%clk 0:00:10]}  Nde5 {[%clk 0:01:20]} 26. Bh1 {[%clk 0:00:08]}  Nc4 {[%clk 0:01:15]} 27. Qf4 {[%clk 0:00:06]}  Nb4 {[%clk 0:00:51]} 28. b3 {[%clk 0:00:04]}  Nxd5 {[%clk 0:00:25]} 29. Bxd5 {[%clk 0:00:01]}  Qa3+ {[%clk 0:00:24]} 0-1


[Site "https://www.chess.com"]

[Event "Titled Tuesday Blitz February 21 Early 2023"]
[White "Florescu, Codrut-Constantin"]
[Black "Miszler, Levente"]
[WhiteFideId "1202200"]
[BlackFideId "763276"]
[WhiteElo "2259"]
[BlackElo "2271"]
[Result "0-1"]
[Round "06"]
[TimeControl "180+2"]
[Date "2023.02.21"]
[WhiteClock "0:00:11"]
[BlackClock "0:00:35"]

1. e4 {[%clk 0:03:00]}  e6 {[%clk 0:02:57]} 2. Nf3 {[%clk 0:03:00]}  d5 {[%clk 0:02:56]} 3. e5 {[%clk 0:03:01]}  f6 {[%clk 0:02:56]} 4. d4 {[%clk 0:02:59]}  fxe5 {[%clk 0:02:36]} 5. Nxe5 {[%clk 0:02:57]}  Nf6 {[%clk 0:02:34]} 6. Bd3 {[%clk 0:02:57]}  Bd6 {[%clk 0:02:34]} 7. O-O {[%clk 0:02:56]}  O-O {[%clk 0:02:34]} 8. Bg5 {[%clk 0:02:51]}  c5 {[%clk 0:02:34]} 9. c3 {[%clk 0:02:51]}  Nc6 {[%clk 0:02:34]} 10. Nxc6 {[%clk 0:02:50]}  bxc6 {[%clk 0:02:34]} 11. Qe2 {[%clk 0:02:27]}  cxd4 {[%clk 0:02:26]} 12. cxd4 {[%clk 0:02:27]}  Qc7 {[%clk 0:02:27]} 13. f4 {[%clk 0:02:14]}  c5 {[%clk 0:02:26]} 14. Nc3 {[%clk 0:02:13]}  cxd4 {[%clk 0:02:15]} 15. Nb5 {[%clk 0:02:13]}  Qb6 {[%clk 0:02:15]} 16. Nxd6 {[%clk 0:02:13]}  Qxd6 {[%clk 0:02:16]} 17. Rae1 {[%clk 0:02:02]}  Bd7 {[%clk 0:02:14]} 18. Qf2 {[%clk 0:01:41]}  Qb4 {[%clk 0:02:02]} 19. Re2 {[%clk 0:01:26]}  h6 {[%clk 0:02:01]} 20. Bh4 {[%clk 0:01:25]}  Rae8 {[%clk 0:01:48]} 21. Qg3 {[%clk 0:01:23]}  Bb5 {[%clk 0:01:46]} 22. Bxf6 {[%clk 0:01:09]}  Rxf6 {[%clk 0:01:45]} 23. Rfe1 {[%clk 0:00:54]}  Bxd3 {[%clk 0:01:41]} 24. Qxd3 {[%clk 0:00:54]}  Rxf4 {[%clk 0:01:40]} 25. g3 {[%clk 0:00:49]}  Rf6 {[%clk 0:01:38]} 26. Kg2 {[%clk 0:00:49]}  Qc4 {[%clk 0:01:34]} 27. Rd1 {[%clk 0:00:47]}  Qxd3 {[%clk 0:01:29]} 28. Rxd3 {[%clk 0:00:47]}  e5 {[%clk 0:01:30]} 29. Rxd4 {[%clk 0:00:48]}  Rd6 {[%clk 0:01:30]} 30. Ra4 {[%clk 0:00:44]}  Re7 {[%clk 0:01:30]} 31. Kf3 {[%clk 0:00:42]}  Kf7 {[%clk 0:01:27]} 32. Rb4 {[%clk 0:00:42]}  Ke6 {[%clk 0:01:26]} 33. Ke3 {[%clk 0:00:41]}  Rc6 {[%clk 0:01:21]} 34. Rg4 {[%clk 0:00:40]}  Rf7 {[%clk 0:01:20]} 35. Rg6+ {[%clk 0:00:38]}  Rf6 {[%clk 0:01:19]} 36. Rxg7 {[%clk 0:00:37]}  Ra6 {[%clk 0:01:16]} 37. b3 {[%clk 0:00:37]}  Rc6 {[%clk 0:00:53]} 38. Rxa7 {[%clk 0:00:35]}  e4 {[%clk 0:00:47]} 39. Kd2 {[%clk 0:00:17]}  Rf3 {[%clk 0:00:46]} 40. Ra8 {[%clk 0:00:16]}  Ke5 {[%clk 0:00:45]} 41. Ra4 {[%clk 0:00:13]}  Rcc3 {[%clk 0:00:45]} 42. Rb4 {[%clk 0:00:11]}  Rfd3+ {[%clk 0:00:42]} 43. Ke1 {[%clk 0:00:11]}  Rc1+ {[%clk 0:00:42]} 44. Kf2 {[%clk 0:00:11]}  Rf3+ {[%clk 0:00:42]} 45. Kg2 {[%clk 0:00:12]}  Rc5 {[%clk 0:00:39]} 46. a4 {[%clk 0:00:11]}  d4 {[%clk 0:00:39]} 47. Rb5 {[%clk 0:00:11]}  Rxb5 {[%clk 0:00:39]} 48. axb5 {[%clk 0:00:10]}  d3 {[%clk 0:00:39]} 49. Rd2 {[%clk 0:00:10]}  Kd4 {[%clk 0:00:35]} 50. b6 {[%clk 0:00:10]}  Rf6 {[%clk 0:00:34]} 51. g4 {[%clk 0:00:11]}  Rxb6 {[%clk 0:00:34]} 52. Kg3 {[%clk 0:00:11]}  e3 {[%clk 0:00:35]} 53. Rd1 {[%clk 0:00:11]}  e2 {[%clk 0:00:35]} 0-1


[Site "https://www.chess.com"]

[Event "Titled Tuesday Blitz February 21 Early 2023"]
[White "Maksimenko, Viktor"]
[Black "Carrasco Miranda, Andres"]
[WhiteFideId "13710478"]
[BlackFideId "3405990"]
[WhiteElo "2196"]
[BlackElo "2240"]
[Result "1-0"]
[Round "06"]
[TimeControl "180+2"]
[Date "2023.02.21"]
[WhiteClock "0:02:32"]
[BlackClock "0:02:03"]

1. d4 {[%clk 0:03:00]}  Nf6 {[%clk 0:02:59]} 2. c4 {[%clk 0:02:57]}  g6 {[%clk 0:02:59]} 3. Nc3 {[%clk 0:02:57]}  d5 {[%clk 0:02:59]} 4. cxd5 {[%clk 0:02:58]}  Nxd5 {[%clk 0:02:59]} 5. e4 {[%clk 0:02:59]}  Nxc3 {[%clk 0:03:00]} 6. bxc3 {[%clk 0:03:00]}  Bg7 {[%clk 0:03:00]} 7. Nf3 {[%clk 0:03:00]}  c5 {[%clk 0:03:01]} 8. Bb5+ {[%clk 0:03:01]}  Nc6 {[%clk 0:02:58]} 9. O-O {[%clk 0:03:01]}  O-O {[%clk 0:02:58]} 10. Bxc6 {[%clk 0:03:01]}  bxc6 {[%clk 0:02:58]} 11. Qc2 {[%clk 0:03:00]}  Bg4 {[%clk 0:02:57]} 12. Ne5 {[%clk 0:03:00]}  Bxe5 {[%clk 0:02:56]} 13. dxe5 {[%clk 0:03:01]}  c4 {[%clk 0:02:53]} 14. Ba3 {[%clk 0:02:57]}  Qd3 {[%clk 0:02:44]} 15. Qxd3 {[%clk 0:02:53]}  cxd3 {[%clk 0:02:45]} 16. f3 {[%clk 0:02:53]}  Be6 {[%clk 0:02:41]} 17. Bxe7 {[%clk 0:02:53]}  Rfb8 {[%clk 0:02:41]} 18. Rfd1 {[%clk 0:02:52]}  Bc4 {[%clk 0:02:41]} 19. Rd2 {[%clk 0:02:51]}  Rb5 {[%clk 0:02:37]} 20. Bd6 {[%clk 0:02:51]}  a5 {[%clk 0:02:34]} 21. Kf2 {[%clk 0:02:40]}  a4 {[%clk 0:02:13]} 22. a3 {[%clk 0:02:33]}  Rb3 {[%clk 0:02:07]} 23. Ke3 {[%clk 0:02:32]}  Rxc3 {[%clk 0:02:03]} 24. Kd4 {[%clk 0:02:32]} 1-0


[Site "https://www.chess.com"]